[Event "Austria 2nd BL-Mitte 2024-25"]
[Site "Austria"]
[Date "2025.04.05"]
[Round "10.17"]
[White "Huber, Martin Christian"]
[Black "Belezky, Alexander"]
[Result "1/2-1/2"]
[Annotator "ChessBase"]
[ECO "E21"]
[WhiteElo "2330"]
[BlackElo "2290"]
[PlyCount "61"]
[EventDate "2025.03.30"]
[EventType "team-tourn"]
[EventCountry "AUT"]
[SourceTitle "playchess.com"]
[Source "ChessBase"]
[SourceQuality "1"]
[TimeControl "40/5400+30:1800+30"]

1. Nf3 {[%emt 0:00:04]} Nf6 {[%emt 0:00:09]} 2. c4 {[%emt 0:00:20]} Nc6 {[%emt 0:00:14]} 3. d4 {[%emt 0:01:46]} e6 {[%emt 0:00:06]} 4. Nc3 {[%emt 0:05:56]} Bb4 {[%emt 0:00:07]} 5. Bd2 {[%emt 0:03:48]} O-O {[%emt 0:02:42]} 6. e3 {[%emt 0:02:26]} d6 {[%emt 0:05:32]} 7. a3 {[%emt 0:01:24]} Bxc3 {[%emt 0:00:08]} 8. Bxc3 {[%emt 0:00:02]} Ne4 {[%emt 0:00:15]} 9. Qc2 {[%emt 0:01:45]} Nxc3 {[%emt 0:01:06]} 10. Qxc3 {[%emt 0:00:04]} a5 {[%emt 0:08:14]} 11. b3 {[%emt 0:01:57]} Qe7 {[%emt 0:08:52]} 12. Be2 {[%emt 0:02:26]} e5 {[%emt 0:04:57]} 13. d5 {[%emt 0:03:08]} Nb8 {[%emt 0:00:05]} 14. e4 {[%emt 0:00:57]} Bg4 {[%emt 0:00:46]} 15. O-O {[%emt 0:03:20]} Nd7 {[%emt 0:07:46]} 16. h3 {[%emt 0:06:02]} Bh5 {[%emt 0:14:19]} 17. b4 {[%emt 0:04:11]} Ra7 {[%emt 0:13:51]} 18. Rfc1 {[%emt 0:28:51]} Bxf3 {[%emt 0:05:11]} 19. Bxf3 {[%emt 0:01:48]} b6 {[%emt 0:00:53]} 20. Bd1 {[%emt 0:02:28]} Rfa8 {[%emt 0:00:36]} 21. Qb2 {[%emt 0:04:10]} axb4 {[%emt 0:06:49]} 22. axb4 {[%emt 0:00:18]} Qf8 {[%emt 0:00:26]} 23. Bb3 {[%emt 0:11:13]} Qb8 {[%emt 0:00:40]} 24. Bc2 {[%emt 0:00:58]} Qb7 {[%emt 0:01:42]} 25. Bb3 {[%emt 0:01:23]} Ra6 {[%emt 0:01:56]} 26. Bc2 {[%emt 0:04:44]} Qa7 {[%emt 0:00:57]} 27. Rxa6 {[%emt 0:00:02]} Qxa6 {[%emt 0:00:04]} 28. Bb3 {[%emt 0:00:05]} Qa3 {[%emt 0:01:34]} 29. Qxa3 {[%emt 0:01:12]} Rxa3 {[%emt 0:00:06]} 30. Rb1 {[%emt 0:00:17]} Nf6 {[%emt 0:02:07]} 31. f3 {[%emt 0:00:09]} 1/2-1/2

[Event "Austria 2nd BL-Mitte 2024-25"]
[Site "Austria"]
[Date "2025.04.05"]
[Round "10.18"]
[White "Lentrodt, Thomas"]
[Black "Wendl, Philipp"]
[Result "1-0"]
[Annotator "ChessBase"]
[ECO "E14"]
[WhiteElo "2228"]
[BlackElo "2268"]
[PlyCount "77"]
[EventDate "2025.03.30"]
[EventType "team-tourn"]
[EventCountry "AUT"]
[SourceTitle "playchess.com"]
[Source "ChessBase"]
[SourceQuality "1"]
[TimeControl "40/5400+30:1800+30"]

1. d4 {[%emt 0:00:09]} Nf6 {[%emt 0:00:11]} 2. c4 {[%emt 0:00:11]} e6 {[%emt 0:00:05]} 3. Nf3 {[%emt 0:00:13]} b6 {[%emt 0:00:57]} 4. a3 {[%emt 0:00:58]} Bb7 {[%emt 0:02:17]} 5. e3 {[%emt 0:05:07]} Be7 {[%emt 0:02:15]} 6. Bd3 {[%emt 0:01:12]} O-O {[%emt 0:00:48]} 7. Nc3 {[%emt 0:00:29]} d5 {[%emt 0:01:10]} 8. cxd5 {[%emt 0:10:04]} exd5 {[%emt 0:03:23]} 9. Qc2 {[%emt 0:04:54]} Nbd7 {[%emt 0:04:37]} 10. O-O {[%emt 0:05:03]} a6 {[%emt 0:02:50]} 11. Ne5 {[%emt 0:09:07]} Bd6 {[%emt 0:02:47]} 12. f4 {[%emt 0:09:06]} c5 {[%emt 0:02:46]} 13. Bd2 {[%emt 0:05:11]} Rc8 {[%emt 0:01:10]} 14. Nxd7 {[%emt 0:06:11]} Qxd7 {[%emt 0:06:17]} 15. Bf5 {[%emt 0:40:05]} Qe7 {[%emt 0:00:23]} 16. Bxc8 {[%emt 0:00:00]} Rxc8 {[%emt 0:00:03]} 17. Qd3 {[%emt 0:00:00]} Ne4 {[%emt 0:04:58]} 18. Nxe4 {[%emt 0:00:00]} dxe4 {[%emt 0:03:58]} 19. Qb3 {[%emt 0:00:00]} cxd4 {[%emt 0:02:57]} 20. exd4 {[%emt 0:00:00]} b5 {[%emt 0:04:18]} 21. Rac1 {[%emt 0:00:00]} Rd8 {[%emt 0:00:50]} 22. Be3 {[%emt 0:00:00]} Bb8 {[%emt 0:02:38]} 23. Qc3 {[%emt 0:00:00]} Ba7 {[%emt 0:03:06]} 24. Rfd1 {[%emt 0:00:00]} h6 {[%emt 0:02:52]} 25. h3 {[%emt 0:00:00]} Bb6 {[%emt 0:01:52]} 26. d5 {[%emt 0:00:00]} Bxe3+ {[%emt 0:01:24]} 27. Qxe3 {[%emt 0:00:00]} Rxd5 {[%emt 0:01:39]} 28. Rxd5 {[%emt 0:00:00]} Bxd5 {[%emt 0:00:02]} 29. Qc5 {[%emt 0:00:00]} Qe6 {[%emt 0:04:25]} 30. Qc8+ {[%emt 0:00:00]} Kh7 {[%emt 0:00:03]} 31. Qxe6 {[%emt 0:00:00]} Bxe6 {[%emt 0:00:01]} 32. Rc5 {[%emt 0:00:00]} Bc4 {[%emt 0:04:03]} 33. Re5 {[%emt 0:00:28]} Bd3 {[%emt 0:00:14]} 34. b4 {[%emt 0:00:09]} Kg6 {[%emt 0:00:56]} 35. Kf2 {[%emt 0:00:19]} f6 {[%emt 0:03:59]} 36. Rc5 {[%emt 0:00:44]} h5 {[%emt 0:01:35]} 37. h4 {[%emt 0:04:51]} Bc4 {[%emt 0:03:16]} 38. Ke3 {[%emt 0:02:08]} Bd3 {[%emt 0:00:06]} 39. f5+ {[%emt 0:00:38]} 1-0

[Event "Austria 2nd BL-Mitte 2024-25"]
[Site "Austria"]
[Date "2025.04.05"]
[Round "10.19"]
[White "Stevic, Hrvoje"]
[Black "Schernthaner, David"]
[Result "1-0"]
[Annotator "RC"]
[ECO "B51"]
[WhiteElo "2545"]
[BlackElo "2403"]
[PlyCount "67"]
[EventDate "2025.03.30"]
[EventType "team-tourn"]
[EventCountry "AUT"]
[SourceTitle "playchess.com"]
[Source "ChessBase"]
[SourceQuality "1"]
[TimeControl "40/5400+30:1800+30"]

1. e4 {[%emt 0:00:03]} c5 {[%emt 0:00:13]} 2. Nf3 {[%emt 0:00:22]} d6 {[%emt 0:00:05]} 3. Bb5+ {[%emt 0:00:23]} Nd7 {[%emt 0:00:07]} 4. O-O {[%emt 0:00:31]} a6 {[%emt 0:00:04]} 5. Be2 {[%emt 0:00:57]} Ngf6 {[%emt 0:00:44]} 6. d3 {[%emt 0:00:12]} e6 {[%emt 0:00:12]} 7. a4 {[%emt 0:00:22]} b6 {[%emt 0:00:05]} 8. Nfd2 {[%emt 0:00:30]} Be7 {[%emt 0:00:28]} 9. f4 {[%emt 0:00:13]} Bb7 {[%emt 0:00:52]} 10. Bf3 {[%emt 0:00:42]} Qc7 {[%emt 0:01:32]} 11. Nc3 {[%emt 0:00:39]} O-O {[%emt 0:06:38]} 12. g4 {[%emt 0:00:53]} Nb8 {[%emt 0:01:02]} 13. g5 {[%emt 0:01:56]} Nfd7 {[%emt 0:02:37]} 14. Bg2 {[%emt 0:00:56]} Nc6 {[%emt 0:02:28]} 15. Nc4 {[%emt 0:02:58]} Nd4 {[%emt 0:06:56]} 16. Ne2 {[%emt 0:01:17]} b5 {[%emt 0:03:31]} 17. Ne3 {[%emt 0:00:36]} f5 {[%emt 0:11:42]} 18. Ng3 {[%emt 0:36:58]} bxa4 {[%emt 0:13:48]} 19. Rxa4 {[%emt 0:27:03]} Nb6 {[%emt 0:03:59]} 20. Ra1 {[%emt 0:04:18]} fxe4 {[%emt 0:09:00]} 21. dxe4 {[%emt 0:00:26]} Rad8 {[%emt 0:02:10]} 22. c3 {[%emt 0:00:22]} Nb5 {[%emt 0:01:03]} 23. Qg4 {[%emt 0:02:30]} Bc8 {[%emt 0:01:54]} 24. f5 {[%emt 0:00:44]} exf5 {[%emt 0:00:26]} 25. exf5 {[%emt 0:00:36]} d5 {[%emt 0:03:11]} 26. Qh5 {[%emt 0:00:49]} d4 {[%emt 0:08:45]} 27. g6 {[%emt 0:03:09]} h6 {[%emt 0:00:04]} 28. Ng4 {[%emt 0:00:11]} Bf6 {[%emt 0:03:43]} 29. Ne4 {[%emt 0:02:40]} Qe7 {[%emt 0:02:42]} 30. Re1 {[%emt 0:05:24]} Bh4 {[%emt 0:02:32]} 31. Bxh6 {[%emt 0:01:01]} gxh6 {[%emt 0:01:23]} 32. Nxh6+ {[%emt 0:00:54]} Kg7 {[%emt 0:00:05]} 33. f6+ {[%emt 0:00:05]} Qxf6 {[%emt 0:02:04]} 34. Nf5+ {[%emt 0:00:12]} 1-0

[Event "Austria 2nd BL-Mitte 2024-25"]
[Site "Austria"]
[Date "2025.04.05"]
[Round "10.20"]
[White "Freitag, Manfred"]
[Black "Heinemann, Thies"]
[Result "1/2-1/2"]
[Annotator "RC"]
[ECO "E42"]
[WhiteElo "2342"]
[BlackElo "2418"]
[PlyCount "109"]
[EventDate "2025.03.30"]
[EventType "team-tourn"]
[EventCountry "AUT"]
[SourceTitle "playchess.com"]
[Source "ChessBase"]
[SourceQuality "1"]
[TimeControl "40/5400+30:1800+30"]

1. d4 {[%emt 0:00:22]} Nf6 {[%emt 0:00:11]} 2. c4 {[%emt 0:00:28]} e6 {[%emt 0:00:06]} 3. Nc3 {[%emt 0:00:38]} Bb4 {[%emt 0:00:08]} 4. e3 {[%emt 0:00:54]} b6 {[%emt 0:00:21]} 5. Nge2 {[%emt 0:00:12]} c5 {[%emt 0:01:27]} 6. a3 {[%emt 0:00:53]} Ba5 {[%emt 0:00:09]} 7. Rb1 {[%emt 0:00:09]} Na6 {[%emt 0:00:45]} 8. g3 {[%emt 0:02:07]} Bb7 {[%emt 0:03:21]} 9. d5 {[%emt 0:01:07]} b5 {[%emt 0:11:39]} 10. Bg2 {[%emt 0:00:59]} bxc4 {[%emt 0:00:43]} 11. e4 {[%emt 0:00:05]} exd5 {[%emt 0:05:03]} 12. e5 {[%emt 0:01:15]} Ne4 {[%emt 0:01:14]} 13. O-O {[%emt 0:00:07]} Nc7 {[%emt 0:01:46]} 14. Nxe4 {[%emt 0:05:47]} dxe4 {[%emt 0:00:08]} 15. Qa4 {[%emt 0:00:51]} Ne6 {[%emt 0:06:18]} 16. Qxc4 {[%emt 0:00:10]} O-O {[%emt 0:09:36]} 17. Rd1 {[%emt 0:04:20]} f5 {[%emt 0:12:01]} 18. exf6 {[%emt 0:00:34]} d5 {[%emt 0:07:17]} 19. Qb5 {[%emt 0:16:49]} Qb6 {[%emt 0:02:14]} 20. Qxb6 {[%emt 0:10:18]} Bxb6 {[%emt 0:00:11]} 21. fxg7 {[%emt 0:01:25]} Kxg7 {[%emt 0:00:28]} 22. Nc3 {[%emt 0:12:09]} Rad8 {[%emt 0:01:51]} 23. Na4 {[%emt 0:00:31]} Kg6 {[%emt 0:11:21]} 24. h4 {[%emt 0:01:57]} Nd4 {[%emt 0:03:45]} 25. Bg5 {[%emt 0:05:17]} Rde8 {[%emt 0:07:03]} 26. b4 {[%emt 0:01:40]} Ne2+ {[%emt 0:07:33]} 27. Kh2 {[%emt 0:00:31]} c4 {[%emt 0:03:12]} 28. Nxb6 {[%emt 0:01:18]} axb6 {[%emt 0:01:13]} 29. Rd2 {[%emt 0:00:42]} Nc3 {[%emt 0:00:52]} 30. Rc1 {[%emt 0:00:30]} Nb5 {[%emt 0:00:36]} 31. a4 {[%emt 0:01:05]} Nc7 {[%emt 0:01:04]} 32. Bh3 {[%emt 0:00:42]} Bc8 {[%emt 0:00:53]} 33. Be3 {[%emt 0:01:03]} Bxh3 {[%emt 0:00:55]} 34. Kxh3 {[%emt 0:00:01]} Rf6 {[%emt 0:00:20]} 35. Bg5 {[%emt 0:00:31]} Rf7 {[%emt 0:00:19]} 36. Be3 {[%emt 0:00:39]} Ra8 {[%emt 0:00:45]} 37. h5+ {[%emt 0:03:23]} Kxh5 {[%emt 0:00:54]} 38. Bxb6 {[%emt 0:00:01]} Rxa4 {[%emt 0:00:20]} 39. Bxc7 {[%emt 0:00:02]} Rxc7 {[%emt 0:00:13]} 40. Rxd5+ {[%emt 0:00:00]} Kg6 {[%emt 0:00:19]} 41. Rc5 {[%emt 0:30:02]} Rxc5 {[%emt 0:07:39]} 42. bxc5 {[%emt 0:00:00]} Kf5 {[%emt 0:00:06]} 43. c6 {[%emt 0:00:00]} Ke6 {[%emt 0:00:21]} 44. c7 {[%emt 0:00:00]} Kd7 {[%emt 0:00:05]} 45. Kg4 {[%emt 0:00:00]} Kxc7 {[%emt 0:00:10]} 46. Kf4 {[%emt 0:00:00]} Kc6 {[%emt 0:00:41]} 47. Kxe4 {[%emt 0:00:00]} Kc5 {[%emt 0:00:34]} 48. f4 {[%emt 0:00:00]} c3+ {[%emt 0:05:44]} 49. Kd3 {[%emt 0:00:00]} Rd4+ {[%emt 0:00:31]} 50. Kxc3 {[%emt 0:00:00]} Rc4+ {[%emt 0:00:08]} 51. Kd2 {[%emt 0:00:00]} Rxc1 {[%emt 0:00:11]} 52. Kxc1 {[%emt 0:34:56]} h5 {[%emt 0:01:03]} 53. Kd2 {[%emt 0:00:00]} Kd4 {[%emt 0:00:06]} 54. Ke2 {[%emt 0:00:00]} Ke4 {[%emt 0:00:05]} 55. Kf2 {[%emt 0:00:00]} 1/2-1/2

[Event "Austria 2nd BL-Mitte 2024-25"]
[Site "Austria"]
[Date "2025.04.05"]
[Round "10.21"]
[White "Kreisl, Robert"]
[Black "Leitgeb, Julian"]
[Result "1/2-1/2"]
[Annotator "ChessBase"]
[ECO "D02"]
[WhiteElo "2277"]
[BlackElo "2313"]
[PlyCount "46"]
[EventDate "2025.03.30"]
[EventType "team-tourn"]
[EventCountry "AUT"]
[SourceTitle "playchess.com"]
[Source "ChessBase"]
[SourceQuality "1"]
[TimeControl "40/5400+30:1800+30"]

1. Nf3 {[%emt 0:00:04]} Nf6 {[%emt 0:00:07]} 2. d4 {[%emt 0:00:26]} g6 {[%emt 0:00:35]} 3. Nbd2 {[%emt 0:01:45]} d5 {[%emt 0:01:01]} 4. e3 {[%emt 0:03:53]} Bg7 {[%emt 0:00:14]} 5. Be2 {[%emt 0:00:34]} O-O {[%emt 0:00:38]} 6. O-O {[%emt 0:00:04]} c5 {[%emt 0:01:54]} 7. dxc5 {[%emt 0:06:13]} Nbd7 {[%emt 0:02:15]} 8. Nb3 {[%emt 0:02:48]} Qc7 {[%emt 0:01:35]} 9. c4 {[%emt 0:10:04]} dxc4 {[%emt 0:06:34]} 10. Bxc4 {[%emt 0:00:42]} Nxc5 {[%emt 0:02:54]} 11. Nxc5 {[%emt 0:29:17]} Qxc5 {[%emt 0:00:48]} 12. Qb3 {[%emt 0:01:07]} Bg4 {[%emt 0:09:25]} 13. Bd2 {[%emt 0:03:34]} Bxf3 {[%emt 0:04:58]} 14. gxf3 {[%emt 0:00:09]} Qg5+ {[%emt 0:01:24]} 15. Kh1 {[%emt 0:00:04]} Qh5 {[%emt 0:00:18]} 16. Kg2 {[%emt 0:06:21]} Qg5+ {[%emt 0:04:52]} 17. Kh1 {[%emt 0:00:01]} Qh5 {[%emt 0:00:14]} 18. Kg2 {[%emt 0:00:05]} Ne4 {[%emt 0:30:54]} 19. fxe4 {[%emt 0:01:19]} Qg4+ {[%emt 0:00:17]} 20. Kh1 {[%emt 0:00:05]} Qf3+ {[%emt 0:00:27]} 21. Kg1 {[%emt 0:00:01]} Qg4+ {[%emt 0:02:55]} 22. Kh1 {[%emt 0:00:02]} Qf3+ {[%emt 0:00:35]} 23. Kg1 {[%emt 0:00:01]} Qg4+ {[%emt 0:00:45]} 1/2-1/2

[Event "Austria 2nd BL-Mitte 2024-25"]
[Site "Austria"]
[Date "2025.04.05"]
[Round "10.22"]
[White "Marakovits, Nico"]
[Black "Frosch, Erich"]
[Result "1-0"]
[Annotator "ChessBase"]
[ECO "A50"]
[WhiteElo "2302"]
[BlackElo "2135"]
[PlyCount "69"]
[EventDate "2025.03.30"]
[EventType "team-tourn"]
[EventCountry "AUT"]
[SourceTitle "playchess.com"]
[Source "ChessBase"]
[SourceQuality "1"]
[TimeControl "40/5400+30:1800+30"]

1. d4 {[%emt 0:00:02]} Nf6 {[%emt 0:00:06]} 2. c4 {[%emt 0:00:09]} e6 {[%emt 0:00:05]} 3. Nc3 {[%emt 0:00:20]} b6 {[%emt 0:00:06]} 4. e4 {[%emt 0:00:15]} Bb7 {[%emt 0:00:07]} 5. Bd3 {[%emt 0:00:06]} d6 {[%emt 0:00:12]} 6. f4 {[%emt 0:01:28]} g6 {[%emt 0:04:15]} 7. Nf3 {[%emt 0:02:00]} Bg7 {[%emt 0:00:36]} 8. O-O {[%emt 0:01:27]} O-O {[%emt 0:00:09]} 9. Re1 {[%emt 0:14:12]} c5 {[%emt 0:08:22]} 10. d5 {[%emt 0:01:19]} exd5 {[%emt 0:00:29]} 11. cxd5 {[%emt 0:05:43]} a6 {[%emt 0:01:29]} 12. a4 {[%emt 0:02:03]} Re8 {[%emt 0:00:20]} 13. Bc4 {[%emt 0:03:30]} Nbd7 {[%emt 0:14:50]} 14. Bd2 {[%emt 0:07:48]} Qc7 {[%emt 0:03:26]} 15. h3 {[%emt 0:02:30]} Re7 {[%emt 0:05:50]} 16. Qc2 {[%emt 0:04:07]} Rae8 {[%emt 0:00:19]} 17. Rad1 {[%emt 0:06:28]} Qb8 {[%emt 0:00:58]} 18. Bc1 {[%emt 0:01:31]} Nh5 {[%emt 0:12:16]} 19. Nb1 {[%emt 0:15:00]} Bc8 {[%emt 0:06:33]} 20. Qd3 {[%emt 0:05:47]} Bh6 {[%emt 0:10:01]} 21. Ng5 {[%emt 0:03:26]} Bxg5 {[%emt 0:04:35]} 22. fxg5 {[%emt 0:00:01]} Ne5 {[%emt 0:00:27]} 23. Qc2 {[%emt 0:02:37]} Nxc4 {[%emt 0:03:27]} 24. Qxc4 {[%emt 0:00:01]} b5 {[%emt 0:00:18]} 25. axb5 {[%emt 0:00:28]} axb5 {[%emt 0:00:12]} 26. Qd3 {[%emt 0:01:29]} Qb6 {[%emt 0:04:33]} 27. Qf3 {[%emt 0:01:08]} Qa5 {[%emt 0:03:24]} 28. g4 {[%emt 0:01:23]} Ng7 {[%emt 0:00:27]} 29. b3 {[%emt 0:03:10]} Qa2 {[%emt 0:05:53]} 30. Bf4 {[%emt 0:01:24]} Qa6 {[%emt 0:02:03]} 31. Nd2 {[%emt 0:02:10]} Bb7 {[%emt 0:04:24]} 32. Bg3 {[%emt 0:01:32]} Rf8 {[%emt 0:00:47]} 33. Qf6 {[%emt 0:04:04]} Rd7 {[%emt 0:00:20]} 34. Ra1 {[%emt 0:00:31]} Qb6 {[%emt 0:00:13]} 35. Be5 {[%emt 0:00:13]} 1-0

[Event "Austria 2nd BL-Mitte 2024-25"]
[Site "Austria"]
[Date "2025.04.05"]
[Round "10.23"]
[White "Wegerer, Fred"]
[Black "Eibinger, Manuel"]
[Result "1-0"]
[Annotator "NA"]
[ECO "D02"]
[WhiteElo "2113"]
[BlackElo "2071"]
[PlyCount "117"]
[EventDate "2025.03.30"]
[EventType "team-tourn"]
[EventCountry "AUT"]
[SourceTitle "playchess.com"]
[Source "ChessBase"]
[SourceQuality "1"]
[TimeControl "40/5400+30:1800+30"]

1. Nf3 {[%emt 0:00:02]} d5 {[%emt 1:31:00]} 2. d4 {[%emt 0:00:24]} Nf6 {[%emt 0:00:00]} 3. c3 {[%emt 0:01:50]} Bf5 {[%emt 0:00:00]} 4. Qb3 {[%emt 0:01:14]} Qc8 {[%emt 0:00:00]} 5. Bg5 {[%emt 0:04:57]} Nbd7 {[%emt 0:00:00]} 6. Nbd2 {[%emt 0:03:58]} h6 {[%emt 0:00:00]} 7. Bf4 {[%emt 0:01:37]} e6 {[%emt 0:00:00]} 8. h3 {[%emt 0:01:39]} Be7 {[%emt 0:00:00]} 9. e3 {[%emt 0:00:30]} O-O {[%emt 0:00:00]} 10. g4 {[%emt 0:00:45]} Bg6 {[%emt 0:00:00]} 11. Be2 {[%emt 0:02:02]} c5 {[%emt 0:00:00]} 12. Ne5 {[%emt 0:05:45]} Nxe5 {[%emt 0:00:00]} 13. Bxe5 {[%emt 0:01:52]} Nd7 {[%emt 0:00:00]} 14. Bg3 {[%emt 0:00:27]} f6 {[%emt 0:00:00]} 15. O-O {[%emt 0:04:09]} c4 {[%emt 0:00:00]} 16. Qd1 {[%emt 0:00:14]} b5 {[%emt 0:00:00]} 17. a3 {[%emt 0:00:36]} Nb6 {[%emt 0:00:00]} 18. Nf3 {[%emt 0:02:33]} Qc6 {[%emt 0:00:00]} 19. Nh4 {[%emt 0:02:04]} Bh7 {[%emt 0:00:00]} 20. f4 {[%emt 0:01:59]} Bd6 {[%emt 0:00:00]} 21. Kh2 {[%emt 0:01:23]} Qc7 {[%emt 0:00:00]} 22. Ng2 {[%emt 0:13:41]} a5 {[%emt 0:00:00]} 23. h4 {[%emt 0:02:38]} g5 {[%emt 0:00:00]} 24. Qe1 {[%emt 0:12:54]} Na4 {[%emt 0:00:00]} 25. Qd2 {[%emt 0:00:07]} Rf7 {[%emt 0:00:00]} 26. Rf2 {[%emt 0:02:00]} Raf8 {[%emt 0:00:00]} 27. Rh1 {[%emt 0:06:24]} Qb8 {[%emt 0:00:00]} 28. Bd1 {[%emt 0:00:49]} Nb6 {[%emt 0:00:00]} 29. Kg1 {[%emt 0:00:25]} Be4 {[%emt 0:00:00]} 30. Rh3 {[%emt 0:05:38]} Rg7 {[%emt 0:00:00]} 31. hxg5 {[%emt 0:03:21]} hxg5 {[%emt 0:00:00]} 32. Ne1 {[%emt 0:02:48]} Rff7 {[%emt 0:01:20]} 33. Rfh2 {[%emt 0:03:27]} Rh7 {[%emt 0:00:10]} 34. Rxh7 {[%emt 0:01:02]} Rxh7 {[%emt 0:00:05]} 35. Rxh7 {[%emt 0:00:04]} Kxh7 {[%emt 0:01:55]} 36. Qh2+ {[%emt 0:00:16]} Kg7 {[%emt 0:00:10]} 37. Bf3 {[%emt 0:01:24]} Bg6 {[%emt 0:00:48]} 38. Bd1 {[%emt 0:03:12]} Be4 {[%emt 0:05:03]} 39. Nf3 {[%emt 0:01:00]} Qh8 {[%emt 0:05:41]} 40. fxg5 {[%emt 0:02:23]} Qxh2+ {[%emt 0:00:11]} 41. Kxh2 {[%emt 0:30:14]} Bxf3 {[%emt 0:31:02]} 42. gxf6+ {[%emt 0:00:10]} Kxf6 {[%emt 0:00:11]} 43. Bxf3 {[%emt 0:01:52]} Bxg3+ {[%emt 0:01:58]} 44. Kxg3 {[%emt 0:00:03]} Na4 {[%emt 0:00:05]} 45. e4 {[%emt 0:05:21]} Nxb2 {[%emt 0:00:00]} 46. exd5 {[%emt 0:00:00]} exd5 {[%emt 0:00:00]} 47. Bxd5 {[%emt 0:00:00]} Na4 {[%emt 0:00:00]} 48. Kf4 {[%emt 0:00:00]} Nxc3 {[%emt 0:00:00]} 49. g5+ {[%emt 0:00:00]} Kg6 {[%emt 0:00:00]} 50. Be6 {[%emt 0:00:00]} b4 {[%emt 0:00:00]} 51. axb4 {[%emt 0:00:00]} axb4 {[%emt 0:00:00]} 52. Bxc4 {[%emt 0:00:00]} b3 {[%emt 0:00:00]} 53. Bd3+ {[%emt 0:00:00]} Kg7 {[%emt 0:00:00]} 54. Ke5 {[%emt 0:00:00]} b2 {[%emt 0:00:00]} 55. d5 {[%emt 0:00:00]} b1=Q {[%emt 0:00:00]} 56. Bxb1 {[%emt 0:00:00]} Nxb1 {[%emt 0:00:00]} 57. d6 {[%emt 0:00:00]} Na3 {[%emt 0:00:00]} 58. d7 {[%emt 0:00:00]} Nc4+ {[%emt 0:00:00]} 59. Ke6 {[%emt 0:00:00]} 1-0